fUSD/lending_fUSD_20251006
["ID","MTS","AMOUNT","RATE_DAILY","PERIOD"]
[389566376,1759719032966,-1457.3691,0.000149,2]
[389566377,1759719032975,-160.0,0.000149,4]
[389566378,1759719032983,-160.0,0.000149,4]
[389566379,1759719032992,-160.0,0.000149,4]
[389566380,1759719033001,-160.0,0.000149,3]
[389566381,1759719033009,-160.0,0.000149,3]
[389566382,1759719033019,-160.0,0.000149,3]
[389566383,1759719033028,-186.45662579,0.000149,2]
[389566384,1759719033038,-160.0,0.000149,5]
[389566385,1759719033048,-160.0,0.000149,5]
[389566386,1759719033057,-160.0,0.000149,5]
[389566387,1759719033067,-160.0,0.000149,5]
[389566388,1759719033076,-160.0,0.000149,5]
[389566389,1759719033086,-160.0,0.000149,5]
[389566390,1759719033095,-160.0,0.000149,4]
[389566391,1759719033104,-176.87295211,0.000149,2]
[389566392,1759719033113,-969.7303,0.000149,2]
[389566393,1759719033123,-1304.92238241,0.000149,2]
[389566394,1759719033132,-5000.0,0.000149,2]
[389566395,1759719033142,-353.91183133,0.000149,2]
[389566396,1759719033151,-700.0,0.000149,5]
[389566397,1759719033160,-304.62856021,0.000149,2]
[389566398,1759719033171,-174.26180815,0.000149,2]
[389566399,1759719033180,-971.24711586,0.000149,2]
[389566400,1759719033189,-1000.0,0.00014911,2]
[389566401,1759719033199,-215.98033907,0.00014916,2]
[389566402,1759719033207,-1425.0,0.00014926,2]
[389566403,1759719033217,-405.749847,0.00014928,2]
[389566404,1759719033227,-1000.0,0.00014931,2]
[389566405,1759719033236,-1000.0,0.00014934,2]
[389566406,1759719033246,-9905.5980765,0.00014942,2]
[389566407,1759719033257,-1000.0,0.00014948,2]
[389566408,1759719033267,-500.69179469,0.00014973,2]
[389566409,1759719033276,-500.0,0.00014973,2]
[389566410,1759719033285,-500.0,0.00014973,2]
[389566411,1759719033295,-500.0,0.00014973,2]
[389566412,1759719033304,-500.0,0.00014973,2]
[389566413,1759719033314,-500.0,0.00014973,2]
[389566414,1759719033323,-500.0,0.00014973,2]
[389566415,1759719033334,-500.0,0.00014973,2]
[389566416,1759719033344,-502.58859055,0.00014973,2]
[389566417,1759719033353,-500.0,0.00014973,2]
[389566418,1759719033362,-500.0,0.00014973,2]
[389566419,1759719033373,-7156.9158315,0.00014981,2]
[389566420,1759719033385,-218.0007233,0.00014981,2]
[389566421,1759719033403,-150.0,0.00014981,2]
[389566422,1759719033415,-150.0,0.00014981,2]
[389566423,1759719033424,-150.0,0.00014981,2]
[389566424,1759719033435,-500.0,0.00014981,2]
[389566425,1759719033444,-150.0,0.00014981,2]
[389566426,1759719033459,-150.0,0.00014981,2]
[389566427,1759719033469,-151.8092917,0.00014981,2]
[389566428,1759719033479,-320.35,0.00014981,2]
[389566429,1759719033488,-8526.64579672,0.00014981,2]
[389566430,1759719033503,-5360.10567728,0.00014981,2]
[389566431,1759719033514,-1000.0,0.00014985,2]
[389566432,1759719033524,-197.84721923,0.00014986,2]
[389566433,1759719033534,-1192.42,0.0001499,2]
[389566434,1759719033543,-243.8,0.0001499,2]
[389566435,1759719033554,-243.8,0.0001499,2]
[389566436,1759719033563,-243.8,0.0001499,2]
[389566437,1759719033573,-1192.42,0.0001499,2]
[389566438,1759719033582,-10272.10520533,0.00014997,2]
[389566439,1759719033592,-151.0,0.00014997,2]
[389566440,1759719033604,-150.43604745,0.00014999,2]
[389566441,1759719033617,-150.84243942,0.00014999,2]
[389566442,1759719033627,-151.85514932,0.00014999,2]
[389566443,1759719033636,-500.0,0.00014999,2]
[389566444,1759719033645,-150.0,0.00014999,2]
[389566445,1759719033655,-150.0,0.00014999,2]
[389566446,1759719033664,-150.0,0.00014999,2]
[389566447,1759719033674,-528.0,0.00014999,2]
[389566448,1759719033687,-150.0,0.00014999,2]
[389566449,1759719033696,-150.0,0.00014999,2]
[389566450,1759719033706,-690.0,0.00014999,2]
[389566451,1759719033715,-574.0,0.00014999,2]
[389566452,1759719033724,-150.0,0.00014999,2]
[389566453,1759719033734,-150.0,0.00014999,2]
[389566454,1759719033743,-1339.0,0.00014999,2]
[389566455,1759719033752,-1193.19567579,0.00014999,2]
[389566456,1759719033764,-145.80432421,0.00014999,2]
[389566457,1759719033773,-397.18591403,0.00014999,2]
[389566458,1759719033785,-102.81408597,0.00014999,2]
[389566459,1759719033796,-150.4960273,0.00014999,2]
[389566460,1759719033805,-187.25799657,0.00014999,2]
[389566461,1759719033817,-312.74200343,0.00014999,2]
[389566462,1759719033827,-150.0,0.00014999,2]
[389566463,1759719033836,-707.0,0.00014999,2]
[389566464,1759719033847,-142.35568991,0.00014999,2]
[389566465,1759719033874,-362.64431009,0.00014999,2]
[389566466,1759719033883,-455.0,0.00014999,2]
[389566467,1759719033892,-150.0,0.00014999,2]
[389566468,1759719033902,-500.0,0.00014999,2]
[389566469,1759719033911,-150.0,0.00014999,2]
[389566470,1759719033920,-12129.89477165,0.00015,2]
[389566471,1759719033932,-3723.06617689,0.00015,2]
[389566472,1759719033995,-199.46617889,0.00013395,2]
[389566473,1759719034004,-2088.33031636,0.00015,2]
[389566491,1759719037882,-162.54,0.0001499,2]
[389566492,1759719037891,-162.54,0.0001499,2]
[389566493,1759719037901,-162.54,0.0001499,2]
[389566494,1759719037910,-61567.38000002,0.00015,2]
[389566509,1759719038000,-13481.31173324,0.00015,2]
[389566511,1759719038010,-30940.46777524,0.00015,2]
[389566519,1759719038080,-1551.2820238,0.00015,2]
[389566522,1759719038096,-419.075,0.00015,2]
[389566688,1759719039648,-150.0,0.00014999,2]
[389566690,1759719039658,-1019.06179237,0.00015,2]
[389566696,1759719039701,-2659.32000032,0.00015,2]
[389566698,1759719039712,-6628.0499998,0.00015,2]
[389566709,1759719039808,-581.91769986,0.00015,2]
[389567008,1759719042780,-12361.883512,0.00015,2]
[389567020,1759719042887,-650083.54291858,0.00015,2]
[389567023,1759719042899,-1015631.51904347,0.00015,2]
[389567034,1759719042993,-473.05152241,0.00015,2]
[389567278,1759719045453,-17306.2656302,0.00015,2]
[389567280,1759719045464,-678.7967217,0.00015,2]
[389567291,1759719045560,-19813.78365055,0.00015,2]
[389567299,1759719045619,-2747.309,0.00015,2]
[389567311,1759719045726,-83480.14393919,0.00015,2]
[389567317,1759719045780,-852.80369995,0.00015,2]
[389568211,1759719186298,150.0,0.00015,120]
[389568212,1759719377306,150.0,0.00015,120]
[389568213,1759719565047,150.0,0.00015,120]
[389568214,1759719753608,150.0,0.00015,120]
[389568217,1759719940042,174.7,0.00015,120]
[389568219,1759719999123,-331.0,0.000132,2]
[389568220,1759719999147,-500.0,0.00013487,2]
[389568221,1759719999174,-500.0,0.00013487,2]
[389568222,1759719999198,-500.0,0.00013487,2]
[389568223,1759719999221,-500.0,0.00013487,2]
[389568224,1759719999246,-361.39350251,0.00013487,2]
[389568225,1759719999268,-155.44551994,0.00013488,2]
[389568226,1759719999291,-155.91422166,0.00013488,2]
[389568227,1759719999313,-153.17312931,0.00013488,2]
[389568228,1759719999333,-153.17161212,0.00013488,2]
[389568229,1759719999353,-152.35026595,0.00013488,2]
[389568230,1759719999373,-153.31066709,0.00013488,2]
[389568231,1759719999394,-152.0858777,0.00013488,2]
[389568232,1759719999414,-250.0,0.00013978,2]
[389568233,1759719999434,-300.0,0.00013998,2]
[389568234,1759719999454,-150.0,0.00013999,2]
[389568235,1759719999474,-257.00064474,0.00014,2]
[389568243,1759720231876,-262.37705584,0.00013999,2]
[389568244,1759720231888,-560.6085673,0.00014,2]
[389568245,1759720231902,-1111.38609621,0.00014,2]
[389568246,1759720231915,-258.38525471,0.00014,2]
[389568247,1759720231928,-500.0,0.00014,2]
[389568248,1759720231941,-7506.69146768,0.00014,2]
[389568249,1759720231967,-18609.0,0.00014,2]
[389568250,1759720231980,-21846.79169177,0.00014,2]
[389568251,1759720231991,-616.13145786,0.00014061,2]
[389568252,1759720232003,-150.0,0.00014121,7]
[389568253,1759720232014,-200.0,0.00014191,2]
[389568254,1759720232025,-250.0,0.00014233,2]
[389568255,1759720232036,-200.0,0.00014261,2]
[389568256,1759720232047,-152.56,0.0001429,2]
[389568257,1759720232058,-324.0,0.0001438,2]
[389568258,1759720232069,-500.0,0.0001452,2]
[389568259,1759720232080,-862.47507195,0.00014587,2]
[389568260,1759720232091,-150.0,0.00014671,2]
[389568261,1759720232109,-812.84019285,0.00014672,2]
[389568262,1759720232120,-231.28369723,0.00014672,2]
[389568263,1759720232131,-1671.87751892,0.000147,2]
[389568264,1759720232142,-12398.86922379,0.000148,2]
[389568266,1759720232156,-200.0,0.0001488,2]
[389568268,1759720232167,-152.6050414,0.00014891,2]
[389568271,1759720232179,-151.0,0.00014891,2]
[389568273,1759720232189,-195.13883433,0.00014891,2]
[389568275,1759720232202,-601.3376128,0.00014891,2]
[389568279,1759720232213,-151.0,0.00014891,2]
[389568282,1759720232224,-151.0,0.00014891,2]
[389568284,1759720232238,-151.0,0.00014891,2]
[389568285,1759720232248,-322.6107,0.00014891,2]
[389568286,1759720232260,-250.0,0.00014891,2]
[389568287,1759720232271,-629.79472893,0.00014891,2]
[389568288,1759720232282,-200.0,0.00014891,2]
[389568289,1759720232293,-154.05528577,0.00014891,2]
[389568290,1759720232304,-122.65125328,0.00014897,2]
[389568291,1759720232317,-28.34874672,0.00014897,2]
[389568292,1759720232328,-186.45662578,0.000149,2]
[389568293,1759720232339,-21311.65377016,0.000149,2]
[389568294,1759720232351,-37572.47507254,0.000149,2]
[389568295,1759720232365,-1541.37253967,0.000149,2]
[389568296,1759720232377,-783.23866056,0.000149,2]
[389568297,1759720232399,-1421.775,0.000149,2]
[389568298,1759720232412,-348.49099959,0.000149,2]
[389568299,1759720232449,-2122.98102152,0.000149,2]
[389568300,1759720232462,-1074.05855395,0.000149,2]
[389568301,1759720232501,-6680.65384557,0.000149,2]
[389568302,1759720232515,-689.4599387,0.000149,2]
[389568303,1759720232528,-252.31208,0.000149,2]
[389568304,1759720237638,-845.77823193,0.000149,2]
[389568305,1759720237650,-6755.17431631,0.000149,2]
[389568306,1759720237688,-745.17528863,0.000149,2]
[389568307,1759720237699,-18928.23921917,0.000149,2]
[389568308,1759720237709,-2009.91,0.000149,2]
[389568309,1759720237718,-5000.0,0.000149,2]
[389568310,1759720237727,-156.83562738,0.000149,2]
[389568311,1759720237737,-210.83704388,0.000149,2]
[389568312,1759720237746,-253.8571335,0.000149,2]
[389568313,1759720237756,-171.56779491,0.000149,2]
[389568314,1759720237765,-647.49807724,0.000149,2]
[389568315,1759720237775,-283.3,0.00014926,2]
[389568316,1759720237784,-2905.276,0.00014926,2]
[389568317,1759720237794,-500.0,0.00014973,2]
[389568318,1759720237803,-198.231667,0.00014973,2]
[389568319,1759720237812,-500.0,0.00014973,2]
[389568320,1759720237823,-500.0,0.00014973,2]
[389568321,1759720237832,-598.20199635,0.00014973,2]
[389568322,1759720237843,-500.0,0.00014973,2]
[389568323,1759720237852,-579.87087567,0.00014973,2]
[389568324,1759720237861,-500.0,0.00014973,2]
[389568325,1759720237871,-239.58424838,0.00014973,2]
[389568326,1759720237880,-500.0,0.00014973,2]
[389568327,1759720237890,-500.31995857,0.00014973,2]
[389568328,1759720237900,-500.59042681,0.00014973,2]
[389568329,1759720237909,-14662.99683229,0.00014985,2]
[389568330,1759720237918,-168.50041063,0.00014999,2]
[389568331,1759720237928,-1215.68875695,0.00014999,5]
[389568332,1759720237938,-1207.65119155,0.00014999,5]
[389568333,1759720237948,-168653.22440341,0.00014999,2]
[389568334,1759720237957,-150.79218515,0.00014999,2]
[389568335,1759720237967,-191.8800678,0.00014999,2]
[389568336,1759720237976,-150.0,0.00014999,2]
[389568337,1759720237986,-661.0,0.00014999,2]
[389568338,1759720237995,-550.0,0.00014999,2]
[389568339,1759720238005,-2673.09768383,0.00015,2]
[389568340,1759720238019,-37547.06218574,0.00015,2]
[389568341,1759720238039,-7200.0,0.00015,2]
[389568342,1759720238050,-15800.0,0.00015,2]
[389568343,1759720238062,-299.03826448,0.00015,2]
[389568344,1759720238089,-369.77472142,0.00015,2]
[389568345,1759720239839,-7188.04266961,0.00015,2]
[389568346,1759720239848,-409.0,0.00015,3]
[389568347,1759720239858,-3580.07096054,0.00015,2]
[389568348,1759720239869,-4772.44199381,0.00015,2]
[389568349,1759720239918,-9448.68140297,0.00015,2]
[389568350,1759720239973,-4199.0638606,0.00015,2]
[389568354,1759720242751,-534.37594943,0.00015,2]
[389568355,1759720242808,-389.40000002,0.00015,2]
[389568356,1759720242819,-450.0000004,0.00015,2]
[389568357,1759720242859,-1013.80262306,0.00015,2]
[389568358,1759720243021,-9968.34590615,0.00015,2]
[389568359,1759720243033,-3720.0,0.00015,2]
[389568360,1759720243050,-546103.26090005,0.00015,2]
[389568361,1759720243072,-4326.29101212,0.00015,2]
[389568362,1759720245941,-151.48424348,0.00014999,2]
[389568363,1759720245950,-152.50149463,0.00014999,2]
[389568364,1759720245960,-19.71335186,0.00014999,2]
[389568365,1759720245972,-130.28664814,0.00014999,2]
[389568366,1759720245982,-5546.77924638,0.00015,2]
[389568367,1759720245995,-19843.43354341,0.00015,2]
[389568368,1759720246010,-11016.87632456,0.00015,2]
[389568375,1759721060464,318.0,0.000131,2]
[389568378,1759721357810,249.93574549,0.000131,2]
[389568387,1759721431880,-938.65,0.00013597,2]
[389568388,1759721431889,-111.14852092,0.00013829,2]
[389568389,1759721431900,-1009.86412067,0.00013829,2]
[389568390,1759721431911,-795.93735841,0.00013829,2]
[389568391,1759721431921,-195.0,0.00013872,2]
[389568392,1759721431931,-300.0,0.00013916,2]
[389568393,1759721431941,-219.06268659,0.00014004,3]
[389568394,1759721431970,-280.93731341,0.00014004,3]
[389568395,1759721431979,-372.42,0.00014008,2]
[389568396,1759721431988,-157.66,0.00014046,2]
[389568397,1759721431997,-3.62449231,0.00014056,2]
[389568398,1759721432036,-292.68550769,0.00014056,2]
[389568399,1759721432047,-277.0,0.00014085,2]
[389568400,1759721432056,-150.80294565,0.00014102,2]
[389568401,1759721432068,-161.93705435,0.00014102,2]
[389568402,1759721432079,-450.59737954,0.00014249,2]
[389568403,1759721432091,-312.0,0.0001428,2]
[389568404,1759721432103,-1915.0,0.00014318,2]
[389568405,1759721432112,-277.0,0.00014344,2]
[389568406,1759721432122,-277.0,0.00014357,2]
[389568407,1759721432133,-200.0,0.000144,5]
[389568408,1759721432143,-1088.0,0.00014448,2]
[389568409,1759721432154,-1200.0,0.00014452,2]
[389568410,1759721432163,-277.0,0.00014453,2]
[389568411,1759721432172,-305.96215819,0.00014468,2]
[389568412,1759721432181,-68.06617985,0.00014473,2]
[389568413,1759721432192,-498.93382015,0.00014473,2]
[389568414,1759721432201,-65.75755204,0.000145,2]
[389568415,1759721432211,-343.24244796,0.000145,2]
[389568416,1759721432221,-98.0849584,0.000145,5]
[389568419,1759721432287,-401.9150416,0.000145,5]
[389568420,1759721432297,-684.0,0.00014506,2]
[389568421,1759721432306,-168.0,0.00014509,2]
[389568422,1759721432315,-168.0,0.00014511,2]
[389568423,1759721432324,-240.32160832,0.0001452,2]
[389568424,1759721432335,-259.67839168,0.0001452,2]
[389568425,1759721432344,-489.0,0.0001452,2]
[389568426,1759721432353,-150.0,0.0001452,2]
[389568428,1759721432362,-423.6101319,0.00014521,2]
[389568430,1759721432388,-78.3898681,0.00014521,2]
[389568431,1759721432397,-168.0,0.00014539,2]
[389568432,1759721432406,-800.0,0.0001454,2]
[389568434,1759721432415,-277.0,0.00014541,2]
[389568437,1759721432425,-1270.0,0.00014542,2]
[389568440,1759721432434,-168.0,0.00014546,2]
[389568443,1759721432443,-800.0,0.000146,5]
[389568446,1759721432452,-168.0,0.00014612,2]
[389568448,1759721432462,-888.3425053,0.00014626,2]
[389568450,1759721432471,-277.0,0.00014631,2]
[389568452,1759721432482,-145.09178378,0.00014638,2]
[389568455,1759721432500,-22.90821622,0.00014638,2]
[389568457,1759721432509,-7965.41053268,0.00014659,2]
[389568459,1759721432519,-152.22346834,0.00014659,2]
[389568461,1759721432528,-231.28369723,0.00014659,2]
[389568462,1759721432537,-14847.44984423,0.00014668,2]
[389568463,1759721432547,-1100.0,0.000147,5]
[389568464,1759721432557,-989.86326706,0.000147,2]
[389568465,1759721432566,-168.0,0.00014704,2]
[389568466,1759721432575,-1001.91969934,0.00014713,2]
[389568467,1759721432584,-1021.89125283,0.00014714,2]
[389568468,1759721432595,-400.4,0.00014714,2]
[389568469,1759721432606,-321.629999,0.00014714,2]
[389568470,1759721432618,-6516.20947056,0.00014714,2]
[389568471,1759721432627,-989.86326706,0.00014722,2]
[389568472,1759721432636,-989.86326706,0.00014744,2]
[389568473,1759721432645,-296.31,0.00014759,2]
[389568474,1759721432655,-989.86326706,0.00014767,2]
[389568475,1759721432666,-4210.40428586,0.00014769,2]
[389568476,1759721432678,-1228.05018651,0.00014769,2]
[389568477,1759721432689,-943.17711426,0.00014769,2]
[389568480,1759721440099,-608.71200005,0.000147,2]
[389568484,1759721442890,-1390.79709995,0.000147,2]
[389568485,1759721442899,-185.91290005,0.00014769,2]
[389568486,1759721442997,-1998.21107243,0.00014769,2]
[389568487,1759721443008,-168.0,0.00014772,2]
[389568488,1759721443017,-2787.0849986,0.00014775,2]
[389568489,1759721443027,-989.86326706,0.00014789,2]
[389568490,1759721443037,-500.0,0.00014795,2]
[389568491,1759721443047,-118627.97453658,0.000148,2]
[389568492,1759721443057,-1400.0,0.000148,5]
[389568493,1759721443066,-989.86326706,0.00014811,2]
[389568494,1759721443075,-1798.51928507,0.00014813,2]
[389568495,1759721443084,-518.9616046,0.00014824,2]
[389568496,1759721443094,-989.86326706,0.00014833,2]
[389568497,1759721443104,-161.96,0.0001484,2]
[389568498,1759721443114,-5305.0,0.0001485,2]
[389568499,1759721443123,-3112.88998,0.0001485,2]
[389568500,1759721443132,-989.86326706,0.00014856,2]
[389568501,1759721443141,-168.0,0.00014857,2]
[389568502,1759721443148,-989.86326706,0.00014878,2]
[389568503,1759721443156,-1000.0,0.00014878,2]
[389568504,1759721443164,-200.0,0.00014879,2]
[389568505,1759721443172,-500.0,0.0001488,2]
[389568506,1759721443181,-200.0,0.0001488,2]
[389568507,1759721443189,-322.6107,0.00014891,2]
[389568508,1759721443197,-266.27797195,0.00014891,2]
[389568509,1759721443204,-632.43693926,0.00014891,2]
[389568510,1759721443212,-1000.0,0.000149,2]
[389568511,1759721443220,-666.0,0.000149,3]
[389568512,1759721443229,-175.75161959,0.000149,2]
[389568513,1759721443237,-2009.91,0.000149,2]
[389568514,1759721443246,-160.61599952,0.000149,2]
[389568515,1759721443254,-158.50130243,0.000149,2]
[389568516,1759721443264,-5000.0,0.000149,2]
[389568517,1759721443273,-1005.0,0.000149,2]
[389568518,1759721443282,-200.0,0.000149,5]
[389568519,1759721443292,-1430.0,0.000149,2]
[389568520,1759721443302,-299.61678463,0.000149,2]
[389568521,1759721443311,-429.20175076,0.000149,2]
[389568522,1759721443321,-163.19995037,0.000149,2]
[389568523,1759721443331,-164.99527522,0.000149,2]
[389568524,1759721443341,-210.50783614,0.000149,2]
[389568525,1759721443350,-171.56779491,0.000149,2]
[389568526,1759721443359,-989.86326706,0.000149,2]
[389568527,1759721443369,-39459.15446195,0.000149,2]
[389568529,1759721443378,-253.8571335,0.000149,2]
[389568531,1759721443388,-210.83704388,0.000149,2]
[389568533,1759721443396,-1073.58995347,0.000149,2]
[389568535,1759721443406,-161.96,0.00014912,2]
[389568538,1759721443418,-168.0,0.00014915,2]
[389568540,1759721443428,-2905.276,0.00014922,2]
[389568542,1759721443438,-283.3,0.00014922,2]
[389568545,1759721443447,-168.0,0.00014966,2]
[389568547,1759721443456,-500.0,0.00014973,2]
[389568549,1759721443465,-500.0,0.00014973,2]
[389568551,1759721443474,-198.231667,0.00014973,2]
[389568553,1759721443484,-500.42990743,0.00014973,2]
[389568554,1759721443494,-500.0,0.00014973,2]
[389568555,1759721443503,-500.0,0.00014973,2]
[389568556,1759721443513,-500.0,0.00014973,2]
[389568557,1759721443522,-500.0,0.00014973,2]
[389568558,1759721443532,-500.0,0.00014973,2]
[389568559,1759721443544,-500.0,0.00014973,2]
[389568560,1759721443554,-500.0,0.00014973,2]
[389568561,1759721443567,-484.69709582,0.00014973,2]
[389568562,1759721443576,-500.0,0.00014973,2]
[389568563,1759721443586,-500.0,0.00014973,2]
[389568564,1759721443595,-500.0,0.00014973,2]
[389568565,1759721443604,-500.0,0.00014973,2]
[389568566,1759721443612,-500.73776,0.00014973,2]
[389568567,1759721443621,-500.31995857,0.00014973,2]
[389568568,1759721443629,-500.59042681,0.00014973,2]
[389568569,1759721443636,-466.98,0.00014973,2]
[389568570,1759721443645,-161.96,0.0001499,2]
[389568571,1759721443655,-161.96,0.0001499,2]
[389568572,1759721443671,-3610.1928091,0.00014999,2]
[389568573,1759721443682,-1211.66997425,0.00014999,5]
[389568574,1759721443693,-1211.66997425,0.00014999,5]
[389568575,1759721443704,-9048.5529174,0.00014999,2]
[389568576,1759721443714,-300.0,0.00014999,2]
[389568577,1759721443724,-150.0,0.00014999,2]
[389568578,1759721443733,-661.0,0.00014999,2]
[389568579,1759721443743,-550.0,0.00014999,2]
[389568580,1759721443752,-150.0,0.00014999,2]
[389568581,1759721443763,-500.0,0.00014999,2]
[389568582,1759721443772,-150.0,0.00014999,2]
[389568583,1759721443782,-2288.0,0.00014999,2]
[389568584,1759721443792,-150.62349728,0.00014999,2]
[389568585,1759721443801,-151.13028479,0.00014999,2]
[389568586,1759721443811,-151.50741552,0.00014999,2]
[389568587,1759721443821,-500.0,0.00014999,2]
[389568588,1759721443833,-500.0,0.00014999,2]
[389568589,1759721443842,-253.3024227,0.00014999,2]
[389568590,1759721443852,-500.0,0.00014999,2]
[389568591,1759721443862,-150.0,0.00014999,2]
[389568592,1759721443871,-150.0,0.00014999,2]
[389568593,1759721443880,-152.76435848,0.00014999,2]
[389568594,1759721443890,-500.0,0.00014999,2]
[389568595,1759721443903,-150.0,0.00014999,2]
[389568596,1759721443912,-150.0,0.00014999,2]
[389568597,1759721443921,-150.0,0.00014999,2]
[389568598,1759721443931,-708.0,0.00014999,2]
[389568599,1759721443943,-484.0,0.00014999,2]
[389568600,1759721443953,-1953.2456337,0.00014999,2]
[389568601,1759721443963,-43615.71247108,0.00015,2]
[389568602,1759721443972,-388.0,0.00015,3]
[389568603,1759721443981,-758192.85800085,0.00015,2]
[389568604,1759721444006,-32626.39774769,0.00015,2]
[389568605,1759721445841,-13184.29391334,0.00015,2]
[389568625,1759721736336,159.54,7.054e-05,2]
[389568626,1759721736544,159.54,8.23e-05,2]
[389568627,1759721736740,159.54,9.405e-05,2]
[389568628,1759721736949,159.54,0.00010581,2]
[389568629,1759721737169,159.54,0.00011757,2]
[389568630,1759721737358,159.54,0.00012932,2]
[389568633,1759722126750,306.0,0.00013,2]
[389568667,1759722632035,-754.0,0.00013487,2]
[389568668,1759722632046,-1200.0,0.00013487,2]
[389568669,1759722632056,-300.0,0.00013487,2]
[389568670,1759722632066,-2000.0,0.00013487,2]
[389568671,1759722632075,-153.83588261,0.00013488,2]
[389568672,1759722632085,-156.80613471,0.00013488,2]
[389568673,1759722632094,-156.19948398,0.00013488,2]
[389568674,1759722632103,-216.25357315,0.00013488,2]
[389568675,1759722632112,-150.0,0.00013488,2]
[389568676,1759722632121,-152.83299058,0.00013488,2]
[389568677,1759722632130,-154.50209243,0.00013488,2]
[389568678,1759722632139,-155.05684086,0.00013488,2]
[389568679,1759722632148,-153.74187827,0.00013488,2]
[389568680,1759722632157,-181.86232963,0.00013698,2]
[389568681,1759722632166,-200.0,0.00013722,2]
[389568682,1759722632179,-1600.0,0.00013889,2]
[389568683,1759722632189,-254.11216869,0.00013903,2]
[389568684,1759722632198,-5259.78366144,0.00013935,2]
[389568685,1759722632208,-250.0,0.00013998,2]
[389568686,1759722632218,-492.0,0.00014,2]
[389568687,1759722632227,-2297.92149597,0.00014026,2]
[389568688,1759722632255,-196.97850403,0.00014026,2]
[389568689,1759722632265,-159.54,0.00014108,2]
[389568690,1759722632274,-1221.14,0.00014134,2]
[389568691,1759722632283,-300.0,0.0001418,2]
[389568692,1759722632292,-345.05342928,0.00014204,2]
[389568693,1759722632302,-392.0,0.00014235,2]
[389568694,1759722632311,-150.0,0.00014248,2]
[389568695,1759722632321,-602.19905915,0.00014249,2]
[389568696,1759722632331,-6462.203125,0.00014249,2]
[389568697,1759722632340,-9000.0,0.00014249,2]
[389568698,1759722632350,-231.28369723,0.00014249,2]
[389568699,1759722632359,-487.0,0.00014255,2]
[389568700,1759722632368,-690.10685857,0.00014304,2]
[389568701,1759722632378,-9000.0,0.00014304,2]
[389568702,1759722632387,-3707.0,0.00014307,2]
[389568703,1759722632396,-1029.0,0.00014333,2]
[389568704,1759722632405,-298.0,0.00014333,2]
[389568705,1759722632414,-400.0,0.000144,5]
[389568706,1759722632423,-421.0,0.00014405,2]
[389568707,1759722632432,-168.0,0.00014464,2]
[389568708,1759722632442,-376.91523304,0.00014479,2]
[389568709,1759722632451,-900.0,0.000145,5]
[389568711,1759722632461,-500.0,0.00014521,2]
[389568713,1759722632470,-164.0,0.00014546,2]
[389568715,1759722632479,-1300.0,0.000146,5]
[389568717,1759722632488,-1157.79285706,0.00014639,2]
[389568719,1759722632498,-168.0,0.00014652,2]
[389568721,1759722632508,-856.74609943,0.00014654,2]
[389568722,1759722632518,-1405.67297383,0.00014699,2]
[389568723,1759722632528,-1800.0,0.000147,5]
[389568724,1759722632537,-1085.76268174,0.00014741,2]
[389568725,1759722632546,-194.75117977,0.0001478,2]
[389568726,1759722632555,-168.0,0.00014798,2]
[389568727,1759722632564,-175.69,0.000148,2]
[389568728,1759722632579,-2200.0,0.000148,5]
[389568729,1759722632588,-1035.16028785,0.00014802,2]
[389568731,1759722632598,-392.0,0.00014806,2]